[Event "Late-Titled-Tuesday-Blitz-October-10-2023"]
[Site "Chess.com"]
[Date "2023.10.10"]
[Round "7"]
[White "realmadridfc123"]
[Black "biostatistician"]
[Result "1-0"]
[WhiteElo "2814"]
[BlackElo "2564"]
[TimeControl "180+1"]
[EndTime "15:11:55 PDT"]
[Termination "realmadridfc123 won by resignation"]

1. e4 {[%clk 0:02:58.2]} 1... e5 {[%clk 0:02:59.9]} 2. Nf3 {[%clk 0:02:58.7]}
2... Nc6 {[%clk 0:02:59.8]} 3. Bc4 {[%clk 0:02:59.3]} 3... Bc5 {[%clk
0:02:59.6]} 4. O-O {[%clk 0:03:00]} 4... Nf6 {[%clk 0:02:59.1]} 5. Nc3 {[%clk
0:03:00.1]} 5... O-O {[%clk 0:02:57.3]} 6. a3 {[%clk 0:03:00.6]} 6... d6 {[%clk
0:02:55.3]} 7. h3 {[%clk 0:03:00.7]} 7... Be6 {[%clk 0:02:54.3]} 8. d3 {[%clk
0:02:58.5]} 8... Bxc4 {[%clk 0:02:53.2]} 9. dxc4 {[%clk 0:02:59.4]} 9... h6
{[%clk 0:02:52.8]} 10. b4 {[%clk 0:02:53]} 10... Bd4 {[%clk 0:02:48.9]} 11. Nxd4
{[%clk 0:02:53.2]} 11... Nxd4 {[%clk 0:02:49.8]} 12. Rb1 {[%clk 0:02:38.4]}
12... a5 {[%clk 0:02:46.8]} 13. bxa5 {[%clk 0:02:36.6]} 13... Qc8 {[%clk
0:02:32.3]} 14. Nd5 {[%clk 0:02:23.5]} 14... Nxd5 {[%clk 0:02:31.9]} 15. cxd5
{[%clk 0:02:24.4]} 15... Rxa5 {[%clk 0:02:31.8]} 16. Bd2 {[%clk 0:02:14.2]}
16... Rc5 {[%clk 0:02:13.4]} 17. c3 {[%clk 0:01:26.6]} 17... Nb5 {[%clk
0:02:10.6]} 18. Qb3 {[%clk 0:01:25.2]} 18... c6 {[%clk 0:01:36.1]} 19. a4 {[%clk
0:01:23.9]} 19... Nc7 {[%clk 0:01:35.2]} 20. c4 {[%clk 0:01:11.5]} 20... cxd5
{[%clk 0:01:33]} 21. cxd5 {[%clk 0:00:52.1]} 21... b5 {[%clk 0:01:22.7]} 22. Bb4
{[%clk 0:00:42.6]} 22... bxa4 {[%clk 0:01:18.1]} 23. Qd3 {[%clk 0:00:24.6]}
23... Na6 {[%clk 0:00:25.8]} 24. Bxc5 {[%clk 0:00:23.7]} 24... Nxc5 {[%clk
0:00:26.7]} 25. Qc4 {[%clk 0:00:17.4]} 25... f5 {[%clk 0:00:24.6]} 26. exf5
{[%clk 0:00:14.6]} 26... Qxf5 {[%clk 0:00:25.5]} 27. Rb6 {[%clk 0:00:14.1]}
27... Qg6 {[%clk 0:00:23.4]} 28. Qxc5 {[%clk 0:00:12.9]} 28... Rf5 {[%clk
0:00:18.5]} 29. Qxd6 {[%clk 0:00:11.2]} 29... Rg5 {[%clk 0:00:19.4]} 30. Qxg6
{[%clk 0:00:11.2]} 30... Rxg6 {[%clk 0:00:20.3]} 31. Rxg6 {[%clk 0:00:11.9]} 1-0

[Event "Late-Titled-Tuesday-Blitz-October-10-2023"]
[Site "Chess.com"]
[Date "2023.10.10"]
[Round "7"]
[White "egnfanclub"]
[Black "ferrufino64"]
[Result "1-0"]
[WhiteElo "2352"]
[BlackElo "2208"]
[TimeControl "180+1"]
[EndTime "15:11:55 PDT"]
[Termination "egnfanclub won by resignation"]

1. e4 {[%clk 0:03:00.9]} 1... c5 {[%clk 0:02:57.1]} 2. Nc3 {[%clk 0:03:00.3]}
2... Nc6 {[%clk 0:02:55]} 3. f4 {[%clk 0:03:00.2]} 3... d6 {[%clk 0:02:54.4]} 4.
Nf3 {[%clk 0:03:01.1]} 4... e6 {[%clk 0:02:54.6]} 5. Bb5 {[%clk 0:03:01.1]} 5...
Ne7 {[%clk 0:02:52]} 6. O-O {[%clk 0:02:56.6]} 6... a6 {[%clk 0:02:52]} 7. Be2
{[%clk 0:02:56.2]} 7... b5 {[%clk 0:02:51.1]} 8. Qe1 {[%clk 0:02:56.4]} 8... Bb7
{[%clk 0:02:49.8]} 9. d3 {[%clk 0:02:56.7]} 9... Qc7 {[%clk 0:02:45]} 10. f5
{[%clk 0:02:52.6]} 10... e5 {[%clk 0:02:40.6]} 11. Qg3 {[%clk 0:02:33.8]} 11...
f6 {[%clk 0:02:38.1]} 12. a3 {[%clk 0:02:02.7]} 12... O-O-O {[%clk 0:02:36.4]}
13. Be3 {[%clk 0:01:55.8]} 13... Kb8 {[%clk 0:02:35]} 14. Nd5 {[%clk 0:01:49.5]}
14... Nxd5 {[%clk 0:02:33.6]} 15. exd5 {[%clk 0:01:50.4]} 15... Nd4 {[%clk
0:02:33.7]} 16. Bxd4 {[%clk 0:01:43]} 16... cxd4 {[%clk 0:02:33.7]} 17. c4
{[%clk 0:01:40]} 17... dxc3 {[%clk 0:02:30.9]} 18. bxc3 {[%clk 0:01:39.7]} 18...
Bxd5 {[%clk 0:02:28.1]} 19. c4 {[%clk 0:01:38.1]} 19... bxc4 {[%clk 0:02:18.1]}
20. dxc4 {[%clk 0:01:38.4]} 20... Bb7 {[%clk 0:02:10.6]} 21. Rab1 {[%clk
0:01:36]} 21... Ka8 {[%clk 0:02:10.4]} 22. Nd2 {[%clk 0:01:27.5]} 22... d5
{[%clk 0:01:53.1]} 23. cxd5 {[%clk 0:01:19.8]} 23... Rxd5 {[%clk 0:01:52.7]} 24.
Nc4 {[%clk 0:01:12.4]} 24... Bc5+ {[%clk 0:01:51.6]} 25. Kh1 {[%clk 0:01:11.8]}
25... Rb8 {[%clk 0:01:20.2]} 26. Rfc1 {[%clk 0:01:06.4]} 26... Ka7 {[%clk
0:00:52.4]} 27. Nb6 {[%clk 0:00:46.3]} 27... Rd6 {[%clk 0:00:38.4]} 28. Na4
{[%clk 0:00:43.3]} 28... Be4 {[%clk 0:00:08.1]} 29. Rxb8 {[%clk 0:00:38.9]}
29... Qxb8 {[%clk 0:00:08.2]} 30. Nxc5 {[%clk 0:00:39.5]} 30... Rc6 {[%clk
0:00:06.5]} 31. Qe3 {[%clk 0:00:36.5]} 31... Qb6 {[%clk 0:00:05.5]} 32. a4
{[%clk 0:00:29.4]} 32... Rxc5 {[%clk 0:00:05.5]} 33. Qxc5 {[%clk 0:00:29]} 33...
Bxf5 {[%clk 0:00:05.9]} 34. Qc7+ {[%clk 0:00:27.9]} 34... Qxc7 {[%clk
0:00:05.9]} 35. Rxc7+ {[%clk 0:00:27.4]} 35... Kb6 {[%clk 0:00:06.8]} 36. Rxg7
{[%clk 0:00:28.1]} 1-0

[Event "Late-Titled-Tuesday-Blitz-October-10-2023"]
[Site "Chess.com"]
[Date "2023.10.10"]
[Round "7"]
[White "rickywsb"]
[Black "Sacbutt"]
[Result "1-0"]
[WhiteElo "2352"]
[BlackElo "2186"]
[TimeControl "180+1"]
[EndTime "15:11:55 PDT"]
[Termination "rickywsb won on time"]

1. d4 {[%clk 0:03:00.9]} 1... e5 {[%clk 0:02:59.2]} 2. dxe5 {[%clk 0:02:54.5]}
2... d6 {[%clk 0:02:59.4]} 3. Nf3 {[%clk 0:02:54]} 3... Nc6 {[%clk 0:02:59.3]}
4. Bg5 {[%clk 0:02:51.7]} 4... Qd7 {[%clk 0:02:58.7]} 5. e3 {[%clk 0:02:49.2]}
5... dxe5 {[%clk 0:02:56.2]} 6. Nc3 {[%clk 0:02:48.3]} 6... a6 {[%clk
0:02:52.4]} 7. Bc4 {[%clk 0:02:44.6]} 7... h6 {[%clk 0:02:48.6]} 8. Bh4 {[%clk
0:02:42.2]} 8... Bb4 {[%clk 0:02:33.6]} 9. O-O {[%clk 0:02:36.4]} 9... Qxd1
{[%clk 0:02:30.2]} 10. Raxd1 {[%clk 0:02:31.3]} 10... Bxc3 {[%clk 0:02:24.7]}
11. bxc3 {[%clk 0:02:31.2]} 11... Bg4 {[%clk 0:02:21.1]} 12. Bd5 {[%clk
0:02:23.4]} 12... f6 {[%clk 0:02:06.2]} 13. h3 {[%clk 0:02:22]} 13... Bh5 {[%clk
0:02:01.7]} 14. Rb1 {[%clk 0:02:09.5]} 14... O-O-O {[%clk 0:01:25.8]} 15. c4
{[%clk 0:02:09.4]} 15... Nge7 {[%clk 0:01:21.4]} 16. Be6+ {[%clk 0:02:01.6]}
16... Kb8 {[%clk 0:01:20.7]} 17. Rb2 {[%clk 0:01:51.3]} 17... Ka7 {[%clk
0:01:15.1]} 18. Rfb1 {[%clk 0:01:50.8]} 18... Rb8 {[%clk 0:01:10.4]} 19. Nd2
{[%clk 0:01:43.4]} 19... Bg6 {[%clk 0:01:07]} 20. f4 {[%clk 0:01:39.3]} 20...
Rhd8 {[%clk 0:01:03.4]} 21. Nb3 {[%clk 0:01:37.2]} 21... Rd6 {[%clk 0:00:56.1]}
22. Bg4 {[%clk 0:01:35.9]} 22... f5 {[%clk 0:00:50]} 23. Be2 {[%clk 0:01:29.5]}
23... exf4 {[%clk 0:00:45.9]} 24. exf4 {[%clk 0:01:27.6]} 24... Nc8 {[%clk
0:00:34.1]} 25. Bf2+ {[%clk 0:01:22.8]} 25... b6 {[%clk 0:00:28.6]} 26. c5
{[%clk 0:01:20.8]} 26... Re6 {[%clk 0:00:28.5]} 27. cxb6+ {[%clk 0:01:18.6]}
27... cxb6 {[%clk 0:00:26.1]} 28. Bf3 {[%clk 0:01:19.1]} 28... Be8 {[%clk
0:00:16.7]} 29. a4 {[%clk 0:01:18.2]} 29... a5 {[%clk 0:00:16]} 30. c3 {[%clk
0:01:15.5]} 30... Ka6 {[%clk 0:00:15.1]} 31. Be2+ {[%clk 0:01:14.1]} 31... Ka7
{[%clk 0:00:14.8]} 32. Bb5 {[%clk 0:01:12.8]} 32... N6e7 {[%clk 0:00:12.5]} 33.
Nxa5 {[%clk 0:01:11.8]} 33... Bxb5 {[%clk 0:00:11.3]} 34. Rxb5 {[%clk
0:01:10.2]} 34... Re2 {[%clk 0:00:10.5]} 35. Nc4 {[%clk 0:01:07.7]} 35... Re4
{[%clk 0:00:09.2]} 36. Nxb6 {[%clk 0:01:03.5]} 36... Nxb6 {[%clk 0:00:05.1]} 37.
Bxb6+ {[%clk 0:01:04.4]} 37... Ka6 {[%clk 0:00:04.3]} 38. Ra5+ {[%clk
0:01:02.9]} 38... Kb7 {[%clk 0:00:03.3]} 39. Ra7+ {[%clk 0:01:03.4]} 39... Kc6
{[%clk 0:00:02.8]} 40. Rc7+ {[%clk 0:01:03.7]} 40... Kd6 {[%clk 0:00:02.8]} 41.
Rd1+ {[%clk 0:01:00.9]} 41... Ke6 {[%clk 0:00:02.7]} 42. a5 {[%clk 0:00:58.1]}
42... Nd5 {[%clk 0:00:03.1]} 43. Rc6+ {[%clk 0:00:56.8]} 43... Kd7 {[%clk
0:00:03.2]} 44. Rc5 {[%clk 0:00:56.1]} 44... Ke6 {[%clk 0:00:02.8]} 45. Rcxd5
{[%clk 0:00:56.4]} 1-0

[Event "Late-Titled-Tuesday-Blitz-October-10-2023"]
[Site "Chess.com"]
[Date "2023.10.10"]
[Round "7"]
[White "Dedic8"]
[Black "rasmussvane"]
[Result "1-0"]
[WhiteElo "2888"]
[BlackElo "2997"]
[TimeControl "180+1"]
[EndTime "15:11:57 PDT"]
[Termination "Dedic8 won on time"]

1. d4 {[%clk 0:03:00.9]} 1... Nf6 {[%clk 0:02:58.4]} 2. c4 {[%clk 0:03:01.4]}
2... e6 {[%clk 0:02:57.9]} 3. Nc3 {[%clk 0:03:02.1]} 3... Bb4 {[%clk 0:02:55.5]}
4. e3 {[%clk 0:03:02.1]} 4... O-O {[%clk 0:02:53.9]} 5. Bd3 {[%clk 0:03:02.5]}
5... d5 {[%clk 0:02:51.4]} 6. a3 {[%clk 0:03:02.6]} 6... Bxc3+ {[%clk
0:02:50.2]} 7. bxc3 {[%clk 0:03:03.5]} 7... dxc4 {[%clk 0:02:50.6]} 8. Bxc4
{[%clk 0:03:04.4]} 8... c5 {[%clk 0:02:50.7]} 9. Ne2 {[%clk 0:03:04.9]} 9... Qc7
{[%clk 0:02:50.2]} 10. Bd3 {[%clk 0:03:05.2]} 10... Nc6 {[%clk 0:02:37.5]} 11.
O-O {[%clk 0:03:05.1]} 11... e5 {[%clk 0:02:21.9]} 12. Ng3 {[%clk 0:03:04.8]}
12... cxd4 {[%clk 0:02:20.3]} 13. cxd4 {[%clk 0:03:05.1]} 13... exd4 {[%clk
0:02:21]} 14. Bb2 {[%clk 0:03:05.5]} 14... Rd8 {[%clk 0:02:08.3]} 15. exd4
{[%clk 0:02:49.1]} 15... Be6 {[%clk 0:01:46.6]} 16. d5 {[%clk 0:01:59]} 16...
Rxd5 {[%clk 0:01:23.2]} 17. Qc2 {[%clk 0:01:55.4]} 17... Qd8 {[%clk 0:01:10.6]}
18. Rad1 {[%clk 0:01:41.8]} 18... Nd4 {[%clk 0:01:01.1]} 19. Qb1 {[%clk
0:01:41.5]} 19... Rc8 {[%clk 0:00:57.9]} 20. Ne4 {[%clk 0:01:35.9]} 20... h6
{[%clk 0:00:54.4]} 21. Kh1 {[%clk 0:01:06.3]} 21... Nxe4 {[%clk 0:00:42.4]} 22.
Bxe4 {[%clk 0:01:06.5]} 22... Rd7 {[%clk 0:00:43]} 23. Rd3 {[%clk 0:00:51.1]}
23... Bc4 {[%clk 0:00:26.9]} 24. Rfd1 {[%clk 0:00:51.5]} 24... Bxd3 {[%clk
0:00:25.9]} 25. Qxd3 {[%clk 0:00:52.3]} 25... Rc2 {[%clk 0:00:16.8]} 26. Bc3
{[%clk 0:00:15.8]} 26... Ne2 {[%clk 0:00:02.4]} 27. Bh7+ {[%clk 0:00:13.2]}
27... Kh8 {[%clk 0:00:01.4]} 28. Qxd7 {[%clk 0:00:13.2]} 1-0

[Event "Late-Titled-Tuesday-Blitz-October-10-2023"]
[Site "Chess.com"]
[Date "2023.10.10"]
[Round "7"]
[White "talaicito"]
[Black "Cambek64"]
[Result "0-1"]
[WhiteElo "2231"]
[BlackElo "2408"]
[TimeControl "180+1"]
[EndTime "15:11:57 PDT"]
[Termination "Cambek64 won on time"]

1. d4 {[%clk 0:02:59.6]} 1... d6 {[%clk 0:02:57]} 2. Nc3 {[%clk 0:02:59.1]} 2...
e5 {[%clk 0:02:55.4]} 3. Nf3 {[%clk 0:02:53.2]} 3... Nc6 {[%clk 0:02:51.3]} 4.
dxe5 {[%clk 0:02:39.4]} 4... Nxe5 {[%clk 0:02:48.5]} 5. e4 {[%clk 0:02:29.5]}
5... Be7 {[%clk 0:02:41]} 6. Be2 {[%clk 0:02:24.7]} 6... Nf6 {[%clk 0:02:41.2]}
7. O-O {[%clk 0:02:24.7]} 7... c6 {[%clk 0:02:38.6]} 8. a4 {[%clk 0:02:18.2]}
8... Qc7 {[%clk 0:02:37.7]} 9. Nd4 {[%clk 0:02:16.9]} 9... O-O {[%clk
0:02:36.3]} 10. f4 {[%clk 0:02:15.6]} 10... Ng6 {[%clk 0:02:37]} 11. g3 {[%clk
0:02:10.4]} 11... Re8 {[%clk 0:02:27.7]} 12. Bf3 {[%clk 0:02:10.2]} 12... Bf8
{[%clk 0:02:27.9]} 13. Re1 {[%clk 0:02:05.6]} 13... a5 {[%clk 0:02:16.4]} 14.
Be3 {[%clk 0:02:04.3]} 14... Bd7 {[%clk 0:02:14.9]} 15. Bf2 {[%clk 0:01:58.2]}
15... Rad8 {[%clk 0:02:14.3]} 16. Qd2 {[%clk 0:01:47.8]} 16... Bh3 {[%clk
0:02:13]} 17. Rad1 {[%clk 0:01:46.6]} 17... Ng4 {[%clk 0:02:10.9]} 18. Kh1
{[%clk 0:01:11.4]} 18... h5 {[%clk 0:02:03.4]} 19. Bg1 {[%clk 0:01:07.2]} 19...
h4 {[%clk 0:01:59.9]} 20. Qe2 {[%clk 0:00:54.7]} 20... hxg3 {[%clk 0:01:53.1]}
21. hxg3 {[%clk 0:00:54.8]} 21... Qc8 {[%clk 0:01:49]} 22. Nf5 {[%clk
0:00:47.9]} 22... Nf6 {[%clk 0:01:48.7]} 23. g4 {[%clk 0:00:45.2]} 23... Nxf4
{[%clk 0:01:46.3]} 24. Qh2 {[%clk 0:00:42.6]} 24... g5 {[%clk 0:01:36.5]} 25.
Qg3 {[%clk 0:00:33.8]} 25... d5 {[%clk 0:01:04.2]} 26. exd5 {[%clk 0:00:32.9]}
26... Rxe1 {[%clk 0:01:00]} 27. Rxe1 {[%clk 0:00:30.7]} 27... cxd5 {[%clk
0:01:00]} 28. Be3 {[%clk 0:00:29.7]} 28... d4 {[%clk 0:00:57.6]} 29. Bxf4 {[%clk
0:00:29.1]} 29... dxc3 {[%clk 0:00:55.4]} 30. Bxg5 {[%clk 0:00:26.2]} 30... Nh7
{[%clk 0:00:54]} 31. Bxd8 {[%clk 0:00:23.7]} 31... cxb2 {[%clk 0:00:51.1]} 32.
Be4 {[%clk 0:00:15.5]} 32... Qxd8 {[%clk 0:00:46.7]} 33. Qxh3 {[%clk 0:00:15.5]}
33... Ng5 {[%clk 0:00:46.8]} 34. Qh4 {[%clk 0:00:10.2]} 34... Qd2 {[%clk
0:00:43.1]} 35. Bd3 {[%clk 0:00:03.4]} 35... Nf3 {[%clk 0:00:40]} 0-1

[Event "Late-Titled-Tuesday-Blitz-October-10-2023"]
[Site "Chess.com"]
[Date "2023.10.10"]
[Round "7"]
[White "Zampronha1971"]
[Black "andrzej"]
[Result "1-0"]
[WhiteElo "2314"]
[BlackElo "2462"]
[TimeControl "180+1"]
[EndTime "15:12:05 PDT"]
[Termination "Zampronha1971 won by resignation"]

1. e4 {[%clk 0:03:00.9]} 1... e5 {[%clk 0:02:59.9]} 2. Nf3 {[%clk 0:03:00.3]}
2... Nf6 {[%clk 0:03:00.5]} 3. d4 {[%clk 0:02:59.7]} 3... Nxe4 {[%clk
0:02:59.8]} 4. Bd3 {[%clk 0:02:59]} 4... d5 {[%clk 0:02:59.9]} 5. Nxe5 {[%clk
0:02:59.2]} 5... Bd6 {[%clk 0:03:00.6]} 6. O-O {[%clk 0:02:58.4]} 6... O-O
{[%clk 0:03:00.9]} 7. c4 {[%clk 0:02:58.9]} 7... Bxe5 {[%clk 0:02:47.2]} 8. dxe5
{[%clk 0:02:58.2]} 8... Nc5 {[%clk 0:02:46.4]} 9. cxd5 {[%clk 0:02:55.9]} 9...
Nc6 {[%clk 0:02:25]} 10. Bf4 {[%clk 0:02:46.3]} 10... Nb4 {[%clk 0:02:17.6]} 11.
Bc4 {[%clk 0:02:37.4]} 11... Bf5 {[%clk 0:02:06]} 12. Nc3 {[%clk 0:02:27.5]}
12... Nbd3 {[%clk 0:02:05.9]} 13. Qd2 {[%clk 0:02:18.6]} 13... Qh4 {[%clk
0:01:58.3]} 14. Bxd3 {[%clk 0:02:07.8]} 14... Nxd3 {[%clk 0:01:54.6]} 15. Bg3
{[%clk 0:02:07.3]} 15... Qd4 {[%clk 0:01:42.3]} 16. Rad1 {[%clk 0:02:00]} 16...
Rad8 {[%clk 0:01:38.8]} 17. d6 {[%clk 0:01:41.1]} 17... cxd6 {[%clk 0:01:29.8]}
18. exd6 {[%clk 0:01:42]} 18... Rfe8 {[%clk 0:01:30.2]} 19. Nb5 {[%clk
0:01:35.7]} 19... Qb6 {[%clk 0:01:27.3]} 20. Nc7 {[%clk 0:01:29.3]} 20... Rf8
{[%clk 0:01:26.6]} 21. b3 {[%clk 0:01:25.2]} 21... h6 {[%clk 0:01:21.6]} 22. Qc3
{[%clk 0:01:23.4]} 22... Nc5 {[%clk 0:01:12.3]} 23. Nd5 {[%clk 0:01:22.8]} 23...
Qb5 {[%clk 0:01:05.2]} 24. Ne7+ {[%clk 0:01:18.2]} 24... Kh7 {[%clk 0:01:03.8]}
25. Nxf5 {[%clk 0:01:18.2]} 25... f6 {[%clk 0:01:04.4]} 26. Qc2 {[%clk
0:01:14.1]} 26... g6 {[%clk 0:00:54.8]} 27. Ne7 {[%clk 0:01:14.1]} 27... f5
{[%clk 0:00:53.4]} 28. Rd5 {[%clk 0:01:05]} 28... b6 {[%clk 0:00:51.1]} 29. Rfd1
{[%clk 0:01:03.7]} 29... Qb4 {[%clk 0:00:46.9]} 30. f3 {[%clk 0:00:59.7]} 30...
Rd7 {[%clk 0:00:42.7]} 31. Bf2 {[%clk 0:01:00.1]} 31... Ne6 {[%clk 0:00:40.2]}
32. Qc4 {[%clk 0:00:47.7]} 32... Qa3 {[%clk 0:00:29.5]} 33. R5d2 {[%clk
0:00:47.9]} 33... Ng5 {[%clk 0:00:27.8]} 34. Nd5 {[%clk 0:00:42.2]} 34... Rxd6
{[%clk 0:00:23.2]} 35. Nf4 {[%clk 0:00:40.2]} 35... Rxd2 {[%clk 0:00:21.6]} 36.
Rxd2 {[%clk 0:00:40.6]} 36... Rf7 {[%clk 0:00:17.6]} 37. h4 {[%clk 0:00:38.6]}
37... Nxf3+ {[%clk 0:00:11.3]} 38. gxf3 {[%clk 0:00:37.7]} 38... Rg7 {[%clk
0:00:11.6]} 39. Qc2 {[%clk 0:00:33.8]} 39... Qd6 {[%clk 0:00:10.9]} 40. Rxd6
{[%clk 0:00:32.6]} 1-0

[Event "Late-Titled-Tuesday-Blitz-October-10-2023"]
[Site "Chess.com"]
[Date "2023.10.10"]
[Round "7"]
[White "BeyondMadness"]
[Black "Langua_Chess"]
[Result "0-1"]
[WhiteElo "2315"]
[BlackElo "2471"]
[TimeControl "180+1"]
[EndTime "15:12:07 PDT"]
[Termination "Langua_Chess won by resignation"]

1. d4 {[%clk 0:03:00.9]} 1... d5 {[%clk 0:02:59.9]} 2. c4 {[%clk 0:03:00.6]}
2... e6 {[%clk 0:02:59.5]} 3. Nc3 {[%clk 0:03:00.3]} 3... h6 {[%clk 0:02:54.6]}
4. Bf4 {[%clk 0:02:56.5]} 4... Bd6 {[%clk 0:02:53.6]} 5. Bxd6 {[%clk 0:02:55.9]}
5... Qxd6 {[%clk 0:02:54.5]} 6. e4 {[%clk 0:02:55.9]} 6... dxe4 {[%clk
0:02:51.7]} 7. Nxe4 {[%clk 0:02:55.3]} 7... Qb4+ {[%clk 0:02:52.4]} 8. Qd2
{[%clk 0:02:55.4]} 8... Qxd2+ {[%clk 0:02:49.2]} 9. Kxd2 {[%clk 0:02:55.4]} 9...
b6 {[%clk 0:02:32.2]} 10. Nf3 {[%clk 0:02:52.5]} 10... Bb7 {[%clk 0:02:32.6]}
11. Bd3 {[%clk 0:02:50.2]} 11... Nd7 {[%clk 0:02:33.2]} 12. Rhe1 {[%clk
0:02:45.4]} 12... Ngf6 {[%clk 0:02:33.5]} 13. Kc3 {[%clk 0:02:39.4]} 13... O-O-O
{[%clk 0:02:28.8]} 14. Rad1 {[%clk 0:02:37.1]} 14... Kb8 {[%clk 0:01:50]} 15. b4
{[%clk 0:02:04.1]} 15... Nh5 {[%clk 0:01:25.7]} 16. Bc2 {[%clk 0:01:14.1]} 16...
Nf4 {[%clk 0:01:19.2]} 17. g3 {[%clk 0:01:11.7]} 17... Nh3 {[%clk 0:01:10.7]}
18. Rf1 {[%clk 0:00:44.7]} 18... g5 {[%clk 0:00:57.9]} 19. Ng1 {[%clk
0:00:28.6]} 19... Nxg1 {[%clk 0:00:40]} 20. Rxg1 {[%clk 0:00:29.5]} 20... f5
{[%clk 0:00:40.5]} 21. Nd2 {[%clk 0:00:27.6]} 21... Nf6 {[%clk 0:00:41.3]} 22.
Nb3 {[%clk 0:00:24.6]} 22... Ng4 {[%clk 0:00:40.5]} 23. Rge1 {[%clk 0:00:19.1]}
23... Rhe8 {[%clk 0:00:39.6]} 24. Rd2 {[%clk 0:00:16.4]} 24... Nxh2 {[%clk
0:00:38.9]} 25. f4 {[%clk 0:00:16.3]} 25... Nf3 {[%clk 0:00:39]} 26. Ree2 {[%clk
0:00:15.6]} 26... Nxd2 {[%clk 0:00:37.9]} 27. Rxd2 {[%clk 0:00:15.7]} 27... gxf4
{[%clk 0:00:30.1]} 28. gxf4 {[%clk 0:00:16.6]} 28... Rg8 {[%clk 0:00:30.4]} 29.
Rh2 {[%clk 0:00:15.6]} 29... Rg3+ {[%clk 0:00:20.4]} 30. Kb2 {[%clk 0:00:15.2]}
30... Rh8 {[%clk 0:00:21.2]} 31. d5 {[%clk 0:00:15.1]} 31... exd5 {[%clk
0:00:18.1]} 32. Nd4 {[%clk 0:00:14.3]} 32... dxc4 {[%clk 0:00:13.5]} 33. Nxf5
{[%clk 0:00:13.9]} 33... Rg2 {[%clk 0:00:14]} 34. Rh4 {[%clk 0:00:12.3]} 34...
Rxc2+ {[%clk 0:00:11.8]} 35. Kxc2 {[%clk 0:00:11.7]} 35... Be4+ {[%clk
0:00:12.5]} 36. Kc3 {[%clk 0:00:12.2]} 36... Bxf5 {[%clk 0:00:13.3]} 0-1

[Event "Late-Titled-Tuesday-Blitz-October-10-2023"]
[Site "Chess.com"]
[Date "2023.10.10"]
[Round "7"]
[White "MaxLeto"]
[Black "carloseduar100"]
[Result "1-0"]
[WhiteElo "2491"]
[BlackElo "2328"]
[TimeControl "180+1"]
[EndTime "15:12:13 PDT"]
[Termination "MaxLeto won on time"]

1. g4 {[%clk 0:02:50.6]} 1... d5 {[%clk 0:02:56.5]} 2. Bg2 {[%clk 0:02:47.6]}
2... Bxg4 {[%clk 0:02:53.4]} 3. c4 {[%clk 0:02:47.8]} 3... e6 {[%clk 0:01:47.2]}
4. Qb3 {[%clk 0:02:30.6]} 4... Nd7 {[%clk 0:01:37.1]} 5. cxd5 {[%clk 0:02:27.1]}
5... Nb6 {[%clk 0:01:22.5]} 6. Qg3 {[%clk 0:02:11.1]} 6... Nf6 {[%clk
0:01:15.6]} 7. dxe6 {[%clk 0:02:10.8]} 7... Bxe6 {[%clk 0:01:16.5]} 8. Bxb7
{[%clk 0:02:10.2]} 8... Bd6 {[%clk 0:01:13.8]} 9. Qxg7 {[%clk 0:02:01.4]} 9...
Rg8 {[%clk 0:01:13.8]} 10. Qh6 {[%clk 0:01:52.7]} 10... Rg6 {[%clk 0:01:07.9]}
11. Qe3 {[%clk 0:00:59.7]} 11... Nfd5 {[%clk 0:00:57.9]} 12. Qe4 {[%clk
0:00:43.2]} 12... Rb8 {[%clk 0:00:56.9]} 13. Bc6+ {[%clk 0:00:42.2]} 13... Kf8
{[%clk 0:00:55.7]} 14. d3 {[%clk 0:00:32.8]} 14... Nf6 {[%clk 0:00:43]} 15. Qh4
{[%clk 0:00:29.8]} 15... Be7 {[%clk 0:00:36.1]} 16. Nf3 {[%clk 0:00:26.5]} 16...
Rg4 {[%clk 0:00:28.8]} 17. Qh6+ {[%clk 0:00:25.7]} 17... Kg8 {[%clk 0:00:29.2]}
18. Nc3 {[%clk 0:00:18.2]} 18... Rg6 {[%clk 0:00:29.3]} 19. Rg1 {[%clk 0:00:15]}
19... Ng4 {[%clk 0:00:23]} 20. Qh5 {[%clk 0:00:09.2]} 20... Qd6 {[%clk
0:00:19.6]} 21. Be4 {[%clk 0:00:08.2]} 21... Nf6 {[%clk 0:00:13.6]} 22. Bxg6
{[%clk 0:00:02.7]} 22... Nxh5 {[%clk 0:00:12.5]} 23. Bxh5+ {[%clk 0:00:03.6]}
23... Kf8 {[%clk 0:00:13]} 24. Bh6+ {[%clk 0:00:03.5]} 24... Ke8 {[%clk
0:00:13.7]} 25. Rg8+ {[%clk 0:00:03.2]} 25... Kd7 {[%clk 0:00:11.4]} 26. Rxb8
{[%clk 0:00:04.1]} 1-0